bitfinex-derivatives/quotes_BNBF0:USTF0_20250807
["timestamp","ask_amount","ask_price","bid_price","bid_amount"]
[1754546607526,1.1688716,768.09,767.17,0.87395567]
[1754546607822,1.1688716,768.04,767.18,0.87395567]
[1754546608837,1.1688716,768.04,767.19,0.855]
[1754546609125,1.1688716,768.05,767.19,0.855]
[1754546614530,1.1688716,768.06,767.19,0.855]
[1754546614730,1.1688716,768.07,767.19,1.72953667]
[1754546616732,1.1688716,768.05,767.19,1.72953667]
[1754546617430,1.1688716,768.0,767.21,0.87453667]
[1754546617628,1.1688716,767.99,767.21,0.87453667]
[1754546620933,1.1688716,768.0,767.22,0.87453667]
[1754546622031,1.1688716,768.0,767.21,0.87453667]
[1754546622432,1.1688716,768.04,767.2,0.87453667]
[1754546622635,1.1688716,768.13,767.19,0.855]
[1754546622936,1.1688716,768.14,767.19,0.855]
[1754546623132,1.1688716,768.14,767.19,1.72953667]
[1754546623332,1.1688716,768.19,767.21,0.87453667]
[1754546623932,1.1688716,768.22,767.26,0.87453667]
[1754546624232,1.1688716,768.22,767.27,0.87453667]
[1754546624631,1.1688716,768.19,767.33,0.87453667]
[1754546624836,1.1688716,768.29,767.29,0.87453667]
[1754546625337,1.1688716,768.34,767.34,0.87453667]
[1754546626236,1.1688716,768.34,767.35,0.87453667]
[1754546628440,1.39547246,768.34,767.35,0.87453667]
[1754546629240,1.1688716,768.33,767.35,0.87453667]
[1754546629741,1.1688716,768.33,767.34,0.87453667]
[1754546630240,1.39547246,768.34,767.36,0.87453667]
[1754546632242,1.1688716,768.33,767.37,0.87453667]
[1754546633438,1.1688716,768.33,767.36,0.87453667]
[1754546633943,1.1688716,768.3,767.38,0.87453667]
[1754546634740,1.1688716,768.17,767.43,0.87453667]
[1754546634940,1.1688716,768.38,767.35,0.87453667]
[1754546635144,1.1688716,768.34,767.36,0.87453667]
[1754546635941,1.1688716,768.35,767.37,0.87453667]
[1754546636241,1.39545475,768.47,767.49,0.87453667]
[1754546636440,0.22658315,768.47,767.49,0.87453667]
[1754546636840,1.39545475,768.47,767.48,0.87453667]
[1754546637444,0.22658315,768.47,767.48,0.87453667]
[1754546637844,1.39545475,768.47,767.5,0.87453667]
[1754546638447,0.22658315,768.47,767.5,0.87453667]
[1754546638745,0.22658315,768.47,767.49,0.87453667]
[1754546639747,0.22658315,768.47,767.48,0.87453667]
[1754546642152,0.22658315,768.47,767.47,0.87453667]
[1754546643250,0.22658315,768.47,767.46,0.87453667]
[1754546644649,1.1688716,768.38,767.51,0.87453667]
[1754546646251,1.1688716,768.38,767.5,0.87453667]
[1754546646454,1.1688716,768.39,767.5,0.87453667]
[1754546647154,1.1688716,768.38,767.5,0.87453667]
[1754546647355,1.1688716,768.39,767.5,0.87453667]
[1754546648155,1.1688716,768.85,767.34,0.87453667]
[1754546648357,1.1688716,768.98,767.64,0.87453667]
[1754546648555,0.22652121,768.78,767.64,0.87453667]
[1754546648951,0.22652121,768.78,767.65,0.87453667]
[1754546650151,0.22652121,768.78,767.64,0.87453667]
[1754546651253,0.22652121,768.78,767.63,0.87453667]
[1754546651663,0.22652121,768.78,767.64,0.87453667]
[1754546652261,0.22652121,768.78,767.63,0.87453667]
[1754546653371,0.22652121,768.78,767.62,0.87453667]
[1754546654965,0.22652121,768.78,767.41,1.1630209]
[1754546655168,0.22652121,768.78,767.63,0.86911306]
[1754546655367,0.22652121,768.78,767.62,0.86911306]
[1754546655863,0.22652121,768.78,767.63,0.86911306]
[1754546656369,0.22652121,768.78,767.62,0.86911306]
[1754546657567,0.22652121,768.78,767.63,0.86911306]
[1754546658163,0.22652121,768.78,767.66,0.86911306]
[1754546658363,0.22652121,768.78,767.65,0.86911306]
[1754546658663,0.22652121,768.78,767.66,0.86911306]
[1754546658868,0.22652121,768.78,767.69,0.86911306]
[1754546659666,0.22652121,768.78,767.7,0.86911306]
[1754546659870,0.22652121,768.78,767.73,0.86911306]
[1754546660169,0.22652121,768.78,767.75,0.86911306]
[1754546661270,0.22652121,768.78,767.74,0.86911306]
[1754546661474,0.22652121,768.78,767.75,0.86911306]
[1754546662375,0.22652121,768.78,767.72,0.86911306]
[1754546662672,1.1688716,769.51,767.73,0.86911306]
[1754546662870,0.22640994,768.87,767.73,0.86911306]
[1754546663076,1.1688716,769.51,767.73,0.86911306]
[1754546663371,0.22639963,768.93,767.72,0.86911306]
[1754546663682,1.1688716,769.53,767.73,0.86911306]
[1754546663876,0.22639889,768.93,767.73,0.86911306]
[1754546664173,1.1688716,769.51,767.73,0.86911306]
[1754546664372,1.1688716,769.51,767.46,1.1630209]
[1754546664373,0.22639815,768.93,767.72,0.86911306]
[1754546664676,0.22639815,768.93,767.46,1.1630209]
[1754546664677,1.1688716,769.48,767.75,0.86911306]
[1754546664876,0.22639153,768.98,767.75,0.86911306]
[1754546665176,0.22639153,768.98,767.77,0.86911306]
[1754546665376,0.22639153,768.98,767.76,0.86911306]
[1754546665671,0.22639153,768.98,767.77,0.86911306]
[1754546666174,0.22639153,768.98,767.76,0.86911306]
[1754546666577,0.22639153,768.98,767.83,0.86911306]
[1754546667077,0.22639153,768.98,767.84,0.86911306]
[1754546668277,2.922179,770.25,767.85,0.86911306]
[1754546668278,1.1688716,769.34,767.85,0.86911306]
[1754546668473,0.22637386,769.12,767.93,0.86911306]
[1754546668686,0.22637386,769.12,767.94,0.86911306]
[1754546668973,0.22637386,769.12,767.93,0.86911306]
[1754546669174,0.22637386,769.12,767.96,0.86911306]
[1754546669777,0.22637386,769.12,767.93,0.86911306]
[1754546669977,0.22637386,769.12,767.91,0.86911306]
[1754546670379,0.22637386,769.12,767.9,0.86911306]
[1754546671475,0.22637386,769.12,767.91,1.068]
[1754546679787,0.22637386,769.12,767.95,0.86911306]
[1754546680384,0.22637386,769.12,767.93,0.86911306]
[1754546680584,0.22637386,769.12,767.94,0.86911306]
[1754546680883,0.22637386,769.12,767.92,0.86911306]
[1754546681285,0.22637386,769.12,767.91,1.068]
[1754546692394,1.39524546,769.12,767.91,1.068]
[1754546692594,0.22637386,769.12,767.91,1.068]
[1754546700200,1.1688716,769.09,767.91,1.068]
[1754546700395,1.1688716,769.07,767.91,1.068]
[1754546701498,1.1688716,769.05,767.91,1.068]
[1754546701802,1.1688716,769.06,767.91,1.068]
[1754546702099,1.1688716,769.09,767.91,1.068]
[1754546702402,1.1688716,769.07,767.91,1.068]
[1754546703206,1.1688716,769.06,767.91,1.068]
[1754546704408,1.1688716,769.04,767.91,1.068]
[1754546705307,1.1688716,769.03,767.91,1.068]
[1754546705503,1.1688716,769.02,767.91,1.068]
[1754546706308,1.1688716,769.0,767.91,1.068]
[1754546706503,1.1688716,768.99,767.91,1.068]
[1754546707308,1.1688716,768.97,767.91,1.068]
[1754546708308,0.22637386,769.12,767.91,1.068]
[1754546708309,1.1688716,768.95,767.91,1.068]
[1754546708509,1.1688716,768.96,767.91,1.068]
[1754546709110,1.1688716,768.95,767.91,1.068]
[1754546710108,1.1688716,768.79,767.91,1.068]
[1754546710512,1.1688716,768.71,767.91,1.068]
[1754546711311,1.1688716,768.73,767.91,1.068]
[1754546711512,1.1688716,768.74,767.91,1.068]
[1754546712312,1.1688716,768.73,767.91,1.068]
[1754546712506,1.7533074,768.91,767.91,1.068]
[1754546712507,1.1688716,768.74,767.91,1.068]
[1754546712709,1.1688716,768.75,767.91,1.068]
[1754546714512,1.1688716,768.76,767.91,1.068]
[1754546714912,1.1688716,768.75,767.91,1.068]
[1754546715416,1.1688716,768.76,767.91,1.068]
[1754546716711,1.1688716,768.77,767.91,1.068]
[1754546717712,1.1688716,768.78,767.91,1.068]
[1754546719013,1.1688716,768.79,767.91,1.068]
[1754546719316,1.1688716,768.78,767.91,1.068]
[1754546720013,1.1688716,768.77,767.91,1.068]
[1754546720813,1.1688716,768.76,767.91,1.068]
[1754546721108,1.1688716,768.7,767.91,1.068]
[1754546721513,1.1688716,768.71,767.91,1.068]
[1754546722415,1.1688716,768.72,767.62,0.86911306]
[1754546723714,1.1688716,768.73,767.62,0.86911306]
[1754546724613,1.1688716,768.74,767.63,0.86911306]
[1754546725318,1.1688716,768.75,767.64,0.962]
[1754546725717,1.1688716,768.74,767.64,0.962]
[1754546725919,1.1688716,768.75,767.64,0.962]
[1754546727320,1.1688716,768.76,767.64,0.962]
[1754546727521,1.1688716,768.77,767.64,0.962]
[1754546728522,1.1688716,768.76,767.64,0.962]
[1754546729020,1.1688716,768.74,767.64,0.962]
[1754546729221,1.1688716,768.73,767.64,0.962]
[1754546731328,1.1688716,768.72,767.64,0.962]
[1754546731623,1.1688716,768.7,767.64,1.83111306]
[1754546731825,1.1688716,768.68,767.64,0.962]
[1754546732024,1.1688716,768.67,767.64,0.962]
[1754546732223,1.1688716,768.66,767.64,0.962]
[1754546732426,1.1688716,768.67,767.64,0.962]
[1754546732727,1.1688716,768.75,767.64,0.962]
[1754546733225,1.1688716,768.77,767.64,0.962]
[1754546734226,1.1688716,768.76,767.64,0.962]
[1754546734930,1.1688716,768.77,767.64,0.962]
[1754546735227,1.1688716,768.79,767.64,0.962]
[1754546735531,1.1688716,768.8,767.64,0.962]
[1754546736330,1.1688716,768.78,767.64,0.962]
[1754546736733,1.1688716,768.79,767.64,0.962]
[1754546737230,1.1688716,768.77,767.64,0.962]
[1754546737532,1.1688716,768.78,767.64,0.962]
[1754546737734,1.1688716,768.99,767.68,0.86911306]
[1754546738231,1.1688716,768.98,767.68,0.86911306]
[1754546739032,1.1688716,768.9,767.77,0.86911306]
[1754546739231,1.1688716,768.95,767.83,0.86911306]
[1754546739436,1.1688716,768.93,767.84,0.86911306]
[1754546740136,1.1688716,768.92,767.82,0.86911306]
[1754546740337,1.1688716,768.9,767.83,0.86911306]
[1754546741436,1.1688716,768.89,767.83,0.86911306]
[1754546741836,1.1688716,768.85,767.85,0.86911306]
[1754546742238,1.1688716,768.84,767.85,0.86911306]
[1754546743334,1.1688716,768.84,767.86,0.86911306]
[1754546744537,1.1688716,768.83,767.86,0.86911306]
[1754546744938,1.1688716,768.97,767.83,0.86911306]
[1754546745535,1.1688716,769.11,767.97,0.86911306]
[1754546745938,1.1688716,769.09,767.95,0.86911306]
[1754546746333,1.1688716,769.09,767.64,0.962]
[1754546746334,1.1688716,769.1,767.96,0.86911306]
[1754546746637,0.22637386,769.12,767.64,0.962]
[1754546746638,1.1688716,769.06,767.97,0.86911306]
[1754546746933,1.1688716,769.0,768.0,0.86911306]
[1754546747639,1.1688716,768.93,768.03,0.86911306]
[1754546747940,1.1688716,768.92,768.03,0.86911306]
[1754546748736,1.1688716,768.93,768.03,0.86911306]
[1754546749235,1.1688716,768.92,768.03,0.86911306]
[1754546749738,1.1688716,768.92,767.75,1.7445314]
[1754546749739,1.1688716,768.94,768.02,0.86911306]
[1754546749938,1.7533074,769.09,767.64,0.962]
[1754546749939,1.1688716,768.92,768.03,0.86911306]
[1754546750238,1.1688716,768.92,768.04,0.86911306]
[1754546750440,1.1688716,768.93,768.03,0.86911306]
[1754546751240,1.1688716,768.92,768.03,0.86911306]
[1754546751437,1.1688716,768.93,768.03,0.86911306]
[1754546753536,1.1688716,768.94,768.02,0.86911306]
[1754546753940,1.1688716,769.05,767.98,0.86911306]
[1754546754240,1.1688716,769.04,767.98,0.86911306]
[1754546754536,1.1688716,769.05,767.98,0.86911306]
[1754546755537,1.1688716,769.06,767.98,0.86911306]
[1754546756341,1.1688716,769.06,767.97,0.86911306]
[1754546757642,1.1688716,769.07,767.97,0.86911306]
[1754546759541,1.1688716,769.08,767.97,0.86911306]
[1754546759742,1.1688716,769.07,767.97,0.86911306]
[1754546761746,1.1688716,769.08,767.97,0.86911306]
[1754546762146,1.1688716,769.08,767.96,0.86911306]
[1754546762647,0.22637386,769.12,767.64,0.962]
[1754546762648,1.1688716,769.09,767.97,0.86911306]
[1754546763543,1.1688716,769.1,767.97,0.86911306]
[1754546763748,1.1688716,768.99,768.02,0.86911306]
[1754546764049,1.1688716,768.97,768.01,0.86911306]
[1754546766047,1.1688716,768.97,767.24,2.9075523]
[1754546766048,1.1688716,769.06,767.97,0.86911306]
[1754546766346,1.1688716,769.06,768.02,0.964]
[1754546767149,1.1688716,769.07,768.02,0.964]
[1754546767551,1.1688716,769.08,768.02,0.964]
[1754546770247,1.1688716,769.07,768.02,0.964]
[1754546773252,1.1688716,769.06,768.02,0.964]
[1754546774650,1.39524546,769.12,768.02,0.964]
[1754546774950,0.22637386,769.12,768.02,0.964]
[1754546775954,1.39524546,769.12,768.02,0.964]
[1754546777451,0.22637386,769.12,768.02,0.964]
[1754546778551,1.39524546,769.12,768.02,0.964]
[1754546779258,0.22637386,769.12,768.02,0.964]
[1754546779456,1.39524546,769.12,768.02,0.964]
[1754546780355,0.22637386,769.12,768.02,0.964]
[1754546781554,1.39524546,769.12,768.02,0.964]
[1754546782961,0.22637386,769.12,768.02,0.964]
[1754546783162,1.1688716,769.04,768.02,0.964]
[1754546783757,1.1688716,769.03,768.02,0.964]
[1754546784458,1.1688716,769.02,768.02,0.964]
[1754546784963,1.1688716,769.01,768.02,0.964]
[1754546785661,1.1688716,769.0,768.02,0.964]
[1754546786460,1.1688716,768.99,768.02,0.964]
[1754546787461,1.1688716,768.98,768.02,0.964]
[1754546788263,1.1688716,769.0,768.02,0.964]
[1754546788466,1.1688716,768.98,768.02,0.964]
[1754546788765,1.1688716,768.99,768.02,0.964]
[1754546789367,1.1688716,768.98,768.02,0.964]
[1754546790363,1.1688716,768.97,768.02,0.964]
[1754546790567,1.1688716,768.96,768.02,0.964]
[1754546791067,1.1688716,768.97,768.02,0.964]
[1754546791264,1.1688716,769.04,768.02,0.964]
[1754546792172,1.1688716,769.02,768.02,0.964]
[1754546792366,1.1688716,769.0,768.02,0.964]
[1754546792570,1.1688716,769.05,768.02,0.964]
[1754546792768,1.1688716,769.1,768.03,0.86911306]
[1754546793372,1.1688716,769.09,768.04,0.86911306]
[1754546794377,1.1688716,769.08,768.03,0.86911306]
[1754546794577,1.1688716,769.07,768.05,0.86911306]
[1754546795372,1.1688716,769.06,768.06,0.86911306]
[1754546796274,1.39524546,769.12,768.04,0.86911306]
[1754546796474,1.1688716,769.11,768.06,0.86911306]
[1754546797075,0.22637386,769.12,768.09,0.86911306]
[1754546797279,0.22637386,769.12,768.1,0.86911306]
[1754546797579,1.39524546,769.12,768.14,0.86911306]
[1754546798275,0.22637386,769.12,768.13,0.86911306]
[1754546798476,1.39524546,769.12,768.14,0.86911306]
[1754546798673,1.1688716,769.11,768.13,0.86911306]
[1754546799379,1.1688716,769.11,768.14,0.86911306]
[1754546799580,1.1688716,769.08,768.14,0.86911306]
[1754546800179,1.1688716,769.08,768.02,0.964]
[1754546800180,1.1688716,769.05,768.16,0.86911306]
[1754546801178,1.1688716,769.03,768.16,0.86911306]
[1754546801379,1.1688716,769.02,768.16,0.86911306]
[1754546802180,1.1688716,769.02,768.15,0.86911306]
[1754546802576,1.1688716,769.02,768.16,0.86911306]
[1754546802978,1.1688716,769.01,768.16,0.86911306]
[1754546803480,1.1688716,769.0,768.16,0.86911306]
[1754546803980,1.1688716,768.91,768.2,0.86911306]
[1754546804378,1.1688716,768.91,768.21,0.86911306]
[1754546805184,1.1688716,768.91,768.2,0.86911306]
[1754546805482,1.1688716,768.91,768.21,0.86911306]
[1754546806082,1.1688716,768.9,768.21,0.86911306]
[1754546806281,1.1688716,768.9,768.2,0.86911306]
[1754546807183,1.1688716,768.89,768.2,0.86911306]
[1754546807483,1.1688716,768.88,768.21,0.86911306]
[1754546807779,1.1688716,768.91,768.2,0.86911306]
[1754546807981,1.1688716,768.91,768.19,0.86911306]
[1754546809383,1.1688716,768.92,768.19,0.86911306]
[1754546809980,1.1688716,768.91,768.19,0.86911306]
[1754546810180,1.7533074,769.06,768.19,0.86911306]
[1754546810181,1.1688716,768.92,768.19,0.86911306]
[1754546810486,1.1688716,768.93,768.18,0.86911306]
[1754546812188,1.1688716,768.92,768.19,0.86911306]
[1754546814685,1.1688716,768.91,768.17,0.86911306]
[1754546816084,1.1688716,768.91,768.18,1.32]
[1754546816490,1.1688716,768.9,768.18,1.32]
[1754546817389,1.1688716,769.01,768.18,1.32]
[1754546817586,1.1688716,769.0,768.18,1.32]
[1754546817788,1.1688716,769.01,768.18,1.32]
[1754546817989,1.1688716,769.0,768.18,1.32]
[1754546819993,1.1688716,769.01,768.18,1.32]
[1754546820690,0.22637386,769.12,768.18,1.32]
[1754546820691,1.1688716,769.02,768.18,1.32]
[1754546823589,1.1688716,769.03,768.18,1.32]
[1754546827397,1.1688716,768.94,768.18,1.32]
[1754546828697,1.1688716,768.95,768.18,1.32]
[1754546829896,1.1688716,768.96,768.18,2.18911306]
[1754546830195,1.1688716,768.92,768.19,0.86911306]
[1754546830400,1.1688716,768.91,768.19,0.86911306]
[1754546832399,1.1688716,768.93,768.18,2.18911306]
[1754546833095,1.1688716,768.93,768.19,0.86911306]
[1754546833401,1.1688716,768.93,768.18,2.18911306]
[1754546833700,1.1688716,768.92,768.19,0.86911306]
[1754546841703,1.1688716,768.93,768.19,0.86911306]
[1754546842406,1.1688716,768.91,768.2,0.86911306]
[1754546842607,1.1688716,768.92,768.19,0.86911306]
[1754546843208,1.1688716,768.92,768.2,0.86911306]
[1754546843401,1.1688716,768.9,768.2,0.86911306]
[1754546843907,1.1688716,768.9,768.18,1.32]
[1754546843908,1.1688716,768.9,768.21,0.86911306]
[1754546844406,1.1688716,768.89,768.21,0.86911306]
[1754546844605,1.1688716,768.9,768.21,0.86911306]
[1754546845308,1.1688716,768.89,768.22,0.86911306]
[1754546845608,1.1688716,769.11,768.18,1.32]
[1754546845908,0.22637386,769.12,768.18,1.32]
[1754546848306,1.39524546,769.12,768.18,1.32]
[1754546849306,0.22637386,769.12,768.18,1.32]
[1754546850308,1.39524546,769.12,768.18,1.32]
[1754546851213,1.1688716,769.12,768.18,1.32]
[1754546851513,1.1688716,769.13,768.18,1.32]
[1754546852110,1.1688716,769.12,768.18,1.32]
[1754546852313,1.1688716,769.11,768.22,0.86911306]
[1754546852613,1.1688716,769.12,768.24,0.86911306]
[1754546852809,1.1688716,768.99,768.29,0.86911306]
[1754546853610,1.1688716,768.95,768.31,0.86911306]
[1754546853914,1.1688716,768.93,768.32,0.86911306]
[1754546854115,1.1688716,768.95,768.31,0.86911306]
[1754546854511,1.1688716,768.96,768.3,0.86911306]
[1754546854810,1.7533074,769.12,768.18,1.32]
[1754546854811,1.1688716,768.95,768.31,0.86911306]
[1754546855015,1.1688716,768.96,768.3,0.86911306]
[1754546855215,1.1688716,768.97,768.3,0.86911306]
[1754546855411,1.1688716,768.98,768.29,0.86911306]
[1754546856015,1.1688716,768.96,768.3,0.86911306]
[1754546856213,1.1688716,768.97,768.3,0.86911306]
[1754546856614,1.1688716,768.98,768.29,0.86911306]
[1754546856811,1.1688716,768.95,768.3,0.86911306]
[1754546857013,1.1688716,768.94,768.31,0.86911306]
[1754546857518,1.1688716,768.95,768.3,0.86911306]
[1754546857924,1.1688716,768.92,768.31,0.86911306]
[1754546858213,1.7533074,769.06,768.31,0.86911306]
[1754546858214,1.1688716,768.93,768.31,0.86911306]
[1754546858818,1.1688716,768.92,768.31,0.86911306]
[1754546860420,1.1688716,768.94,768.3,0.86911306]
[1754546862117,1.1688716,768.94,768.18,1.32]
[1754546862321,1.1688716,768.94,768.29,0.87503801]
[1754546862520,1.1688716,768.94,768.3,0.87503801]
[1754546862817,1.7533074,769.09,768.29,0.87503801]
[1754546862818,1.1688716,768.95,768.29,0.87503801]
[1754546863618,1.1688716,768.96,768.29,0.87503801]
[1754546864523,1.1688716,768.95,768.29,0.87503801]
[1754546867030,1.1688716,768.94,768.28,0.87503801]
[1754546867931,1.1688716,768.93,768.28,0.87503801]
[1754546868131,1.1688716,768.94,768.28,0.87503801]
[1754546869032,1.1688716,768.94,768.29,0.999]
[1754546870229,1.1688716,768.92,768.29,1.87403801]
[1754546871233,1.1688716,768.92,768.29,0.999]
[1754546871928,1.1688716,769.19,768.29,0.999]
[1754546872132,1.1688716,769.22,768.29,0.999]
[1754546872830,1.1688716,769.23,768.29,0.999]
[1754546877141,1.39522705,769.24,768.29,0.999]
[1754546877339,0.22635545,769.24,768.29,0.999]
[1754546877735,1.1688716,769.16,768.29,0.999]
[1754546877935,1.1688716,769.12,768.29,0.999]
[1754546878137,1.1688716,769.1,768.29,1.87403801]
[1754546878735,1.1688716,769.02,768.32,0.87503801]
[1754546879542,1.1688716,769.11,768.33,0.87503801]
[1754546879837,0.22635545,769.24,768.29,0.999]
[1754546879838,1.1688716,769.12,768.32,0.87503801]
[1754546880143,1.1688716,769.11,768.33,0.87503801]
[1754546880545,1.1688716,769.0,768.37,0.87503801]
[1754546880745,1.1688716,769.01,768.37,0.87503801]
[1754546881243,1.1688716,769.05,768.35,0.87503801]
[1754546881741,1.1688716,769.06,768.35,0.87503801]
[1754546882045,1.1688716,769.07,768.34,0.87503801]
[1754546882247,1.1688716,769.08,768.34,0.87503801]
[1754546882644,1.1688716,769.09,768.33,0.87503801]
[1754546883244,1.1688716,769.11,768.35,0.87503801]
[1754546884147,1.1688716,769.11,768.34,0.87503801]
[1754546884346,1.1688716,769.12,768.34,0.87503801]
[1754546885247,1.1688716,769.12,768.33,0.87503801]
[1754546885649,1.1688716,769.12,768.34,0.87503801]
[1754546886249,1.1688716,769.12,768.33,0.87503801]
[1754546887252,1.1688716,769.12,768.29,0.999]
[1754546887253,1.1688716,769.1,768.34,0.87503801]
[1754546887448,1.1688716,769.09,768.34,0.87503801]
[1754546887649,1.1688716,769.1,768.34,0.87503801]
[1754546888048,1.1688716,769.09,768.34,0.87503801]
[1754546888249,1.1688716,769.1,768.34,0.87503801]
[1754546889053,1.1688716,769.11,768.34,0.87503801]
[1754546889253,1.1688716,769.11,768.33,0.87503801]
[1754546889849,1.1688716,769.12,768.33,0.87503801]
[1754546890551,1.1688716,769.11,768.33,0.87503801]
[1754546891055,1.1688716,769.1,768.34,0.87503801]
[1754546891255,1.1688716,769.11,768.33,0.87503801]
[1754546892051,1.1688716,769.15,768.32,0.87503801]
[1754546893152,1.1688716,769.14,768.32,0.87503801]
[1754546894755,1.1688716,769.15,768.32,0.87503801]
[1754546895258,1.1688716,769.15,768.31,0.87503801]
[1754546895658,1.1688716,769.17,768.3,0.87503801]
[1754546895957,1.1688716,769.18,768.3,0.87503801]
[1754546899256,1.1688716,769.19,768.3,0.87503801]
[1754546901060,1.1688716,769.15,768.31,0.87503801]
[1754546901761,1.1688716,769.11,768.33,0.87503801]
[1754546902362,1.1688716,769.13,768.35,0.87503801]
[1754546902562,1.1688716,769.14,768.35,0.87503801]
[1754546903360,1.1688716,769.27,768.46,0.87503801]
[1754546903760,1.1688716,769.26,768.46,0.87503801]
[1754546903958,1.1688716,769.27,768.45,0.87503801]
[1754546904159,1.1688716,769.29,768.44,0.87503801]
[1754546904361,1.1688716,769.32,768.46,0.87503801]
[1754546904560,1.1688716,769.39,768.54,0.87503801]
[1754546904862,1.1688716,769.38,768.56,0.87503801]
[1754546905260,1.1688716,769.4,768.54,0.87503801]
[1754546905562,1.1688716,769.42,768.53,0.87503801]
[1754546906364,1.1688716,769.43,768.52,0.87503801]
[1754546907165,1.1688716,769.44,768.51,0.87503801]
[1754546908362,1.1688716,769.44,768.5,0.87503801]
[1754546908566,1.1688716,769.53,768.47,0.87503801]
[1754546909266,1.1688716,769.54,768.46,0.87503801]
[1754546909566,1.1688716,769.55,768.46,0.87503801]
[1754546909767,1.39513212,769.56,768.46,0.87503801]
[1754546910166,1.39513212,769.56,768.45,0.87503801]
[1754546912268,0.22626052,769.56,768.44,0.87503801]
[1754546912769,0.22626052,769.56,768.43,0.87503801]
[1754546913269,0.22626052,769.56,768.42,0.87503801]
[1754546914969,1.1688716,769.55,768.45,0.87503801]
[1754546915164,1.39513212,769.56,768.44,0.87503801]
[1754546915365,1.39513212,769.56,768.29,0.999]
[1754546915565,1.39513212,769.56,768.44,0.87195104]
[1754546916166,0.22626052,769.56,768.44,0.87195104]
[1754546916870,1.39513212,769.56,768.44,0.87195104]
[1754546917368,0.22626052,769.56,768.44,0.87195104]
[1754546920270,1.1688716,769.5,768.49,0.87195104]
[1754546920471,0.22626052,769.56,768.65,0.87195104]
[1754546920674,1.1688716,769.66,768.64,0.87195104]
[1754546920874,1.1688716,769.69,768.63,0.87195104]
[1754546921268,0.22623331,769.73,768.72,0.87195104]
[1754546922376,0.22623331,769.73,768.71,0.87195104]
[1754546923476,1.1688716,769.78,768.73,0.87195104]
[1754546923675,1.1688716,769.85,768.82,0.87195104]
[1754546923873,0.22617156,769.88,768.84,0.87195104]
[1754546924279,0.22617156,769.88,768.83,0.87195104]
[1754546924473,0.22617156,769.88,768.87,0.87195104]
[1754546924675,0.22617156,769.88,768.82,0.87195104]
[1754546925278,0.22617156,769.88,768.81,0.87195104]
[1754546925980,0.22617156,769.88,768.8,0.87195104]
[1754546926180,0.22617156,769.88,768.79,0.87195104]
[1754546927276,0.22617156,769.88,768.78,0.87195104]
[1754546927677,0.22617156,769.88,768.77,0.87195104]
[1754546928180,0.22617156,769.88,768.72,0.87195104]
[1754546928377,0.22617156,769.88,768.7,0.87195104]
[1754546928576,0.22617156,769.88,768.68,0.87195104]
[1754546928776,0.22617156,769.88,768.69,0.87195104]
[1754546929378,0.22617156,769.88,768.65,0.87195104]
[1754546929676,0.22617156,769.88,768.66,0.87195104]
[1754546929880,0.22617156,769.88,768.52,1.1630209]
[1754546929881,0.22617156,769.88,768.69,0.87195104]
[1754546932081,0.22617156,769.88,768.7,0.863]
[1754546939195,0.22617156,769.88,768.7,1.73495104]
[1754546940391,1.1688716,770.41,768.8,0.87195104]
[1754546940593,1.1688716,770.44,768.85,0.87195104]
[1754546940795,1.1688716,770.44,768.86,0.87195104]
[1754546940796,0.22614657,769.92,768.86,0.87195104]
[1754546940995,1.1688716,770.43,768.86,0.87195104]
[1754546941192,0.22610837,769.92,768.86,0.87195104]
[1754546941496,1.1688716,770.43,768.86,0.87195104]
[1754546941694,0.2261091,769.92,768.86,0.87195104]
[1754546941892,1.1688716,770.44,768.86,0.87195104]
[1754546942391,0.22610764,769.92,768.86,0.87195104]
[1754546942591,1.1688716,770.45,768.86,0.87195104]
[1754546942791,0.22610837,770.05,768.86,0.87195104]
[1754546942993,0.22610837,770.05,768.87,0.87195104]
[1754546943294,0.22610837,770.05,768.88,0.87195104]
[1754546943496,0.22610837,770.05,768.7,0.863]
[1754546943497,0.22610837,770.05,768.87,0.87195104]
[1754546945499,0.22610837,770.05,768.86,0.87195104]
[1754546945898,0.22610837,770.05,768.7,0.863]
[1754546945899,0.22610837,770.05,768.97,0.87195104]
[1754546946098,0.22610837,770.05,768.95,0.87195104]
[1754546946902,0.22610837,770.05,768.96,0.87195104]
[1754546947200,1.1688716,770.41,768.99,0.87195104]
[1754546947400,0.22606798,770.18,769.03,0.87195104]
[1754546947599,0.22606798,770.18,769.07,0.87195104]
[1754546947799,1.1688716,770.53,769.08,0.87195104]
[1754546947999,0.22602833,770.3,769.18,0.87195104]
[1754546948295,0.22602833,770.3,769.13,0.87195104]
[1754546948500,0.22602833,770.3,769.12,0.87195104]
[1754546948699,0.22602833,770.3,769.11,0.87195104]
[1754546949099,0.22602833,770.3,769.12,0.87195104]